{"text_format":"1","workbook":"xlsx","n_sheets":1,"sheets":["加算参考様式8-(2)"],"not_rendered":{"charts":0,"images":0,"macros":0,"external_links":0,"defined_names":2,"comments":0,"pivot_tables":0},"unopened":[],"bounds":{"document_bytes":16777216,"sheet_cells":100000,"rows_first":2000,"rows_last":500,"rows_between":2000,"halvings":0,"cell_chars":16384,"cell_head_chars":4096},"cells_cut":0,"cells_raw":0,"read":"whole","date_system":"1900"}

{"sheet":"加算参考様式8-(2)","index":0,"n_rows":173,"n_cols":70,"rows_kept":173,"cut":false,"hidden":false,"merged":[[12,1,12,25],[17,21,17,23],[18,21,18,23],[19,21,19,23],[14,21,15,23],[16,21,16,23],[28,18,29,18],[17,3,17,20],[18,3,18,20],[20,3,20,20],[20,21,20,23],[21,3,21,20],[21,21,21,23],[22,3,22,20],[22,21,22,23],[23,3,23,20],[31,17,32,17],[30,3,31,6],[30,2,31,2],[34,2,35,2],[32,3,33,6],[32,7,33,7],[23,21,23,23],[39,21,40,23],[32,8,33,8],[32,9,33,9],[32,12,33,12],[34,7,35,7],[31,14,32,14],[39,2,40,2],[41,21,42,23],[41,3,42,20],[50,22,50,24],[45,24,46,24],[48,2,48,24],[49,10,49,12],[50,7,50,9],[50,3,50,5],[49,22,49,24],[45,21,46,23],[50,10,50,12],[49,3,49,5],[49,7,49,9],[49,14,49,16],[49,18,49,21],[41,2,42,2],[10,34,11,36],[14,3,15,20],[16,3,16,20],[28,3,29,6],[11,39,11,40],[7,34,8,36],[39,28,40,28],[39,29,40,29],[41,28,42,28],[41,29,42,29],[39,24,40,24],[41,24,42,24],[34,14,35,14],[34,10,35,10],[34,11,35,11],[34,19,35,20],[34,18,35,18],[34,17,35,17],[34,16,35,16],[31,18,32,18],[31,19,32,20],[10,1,11,3],[10,4,11,23],[28,2,29,2],[0,41,0,50],[1,66,1,82],[0,37,0,39],[7,39,8,40],[7,41,8,41],[13,39,14,40],[7,45,8,45],[10,37,11,37],[12,39,12,40],[7,37,8,37],[232,12,232,13],[34,9,35,9],[57,3,60,15],[57,16,60,22],[39,3,40,20],[45,3,46,20],[34,8,35,8],[56,1,56,6],[57,2,60,2],[61,2,65,2],[34,3,35,6],[50,14,50,16],[54,14,54,16],[61,3,65,15],[61,16,65,22],[52,22,52,24],[53,14,53,16],[53,18,53,21],[51,18,51,21],[54,3,54,5],[54,7,54,9],[54,22,54,24],[53,7,53,9],[51,10,51,12],[7,3,8,4],[7,5,8,10],[7,13,8,23],[14,24,15,24],[13,1,13,3],[30,9,31,9],[25,1,25,3],[28,7,29,7],[7,11,8,12],[19,3,19,20],[30,7,31,7],[30,8,31,8],[28,15,29,15],[28,17,29,17],[30,10,31,10],[30,12,31,12],[28,12,29,12],[28,14,29,14],[28,8,29,8],[28,9,29,9],[28,16,29,16],[28,19,29,20],[31,15,32,15],[31,16,32,16],[61,24,65,24],[14,2,15,2],[28,10,29,10],[28,11,29,11],[30,11,31,11],[45,2,46,2],[57,24,60,24],[34,15,35,15],[34,12,35,12],[51,22,51,24],[52,14,52,16],[52,18,52,21],[54,18,54,21],[53,22,53,24],[51,14,51,16],[51,3,51,5],[53,10,53,12],[52,10,52,12],[53,3,53,5],[52,3,52,5],[52,7,52,9],[51,7,51,9],[54,10,54,12],[50,18,50,21],[31,28,32,28],[33,28,34,28],[35,28,36,28],[31,29,32,29],[33,29,34,29],[35,29,36,29],[31,30,32,30],[31,31,32,31],[45,29,46,29],[45,28,46,28]]}
["(加算参考様式8-(2))",null,null,null,null,null,null,null,"特定事業所加算計算書　（訪問介護）",null,null,null,null,null,null,null,null,null,null,null,null,null,null,null,null,null,null,null,null,null,null,null,null,null,null,null,"事業所番号",{"$f":"IF(F8=\"\",\"\",F8)","v":""},null,null,"事業所名",{"$f":"IF(N8=\"\",\"\",N8)","v":""}]
[]
[null,null,"◎以下の色枠部分について、必要事項のご記入をおねがいします。",null,null,null,null,null,null,null,null,null,null,null,null,null,null,null,null,null,null,null,null,null,null,null,null,null,null,null,null,null,null,null,"◎以下の色枠部分について、必要事項のご記入をおねがいします。"]
[null,null,"◎上から順にご記入をお願いします。"]
[null,null,"◎従業者の表も含め、全て完成させないと適切に表示されないことがあります。"]
[null,null,null,null,null,null,null,null,null,null,null,null,null,null,null,null,null,null,null,null,null,null,null,null,null,null,null,null,null,null,null,null,null,null,"【事業所情報・職員配置状況】"]
[]
[null,null,null,"事業所番号",null,null,null,null,null,null,null,"事業所名",null,null,null,null,null,null,null,null,null,null,null,null,null,null,null,null,null,null,null,null,null,null,"週当たりの\n営業日数",null,null,null,null,"常勤の従業員が\n勤務すべき時間数"]
[null,null,null,null,null,null,null,null,null,null,null,null,null,null,null,null,null,null,null,null,null,null,null,null,null,null,null,null,null,null,null,null,null,null,null,null,null,null,"日間",null,null,null,"時間/日",null,null,null,"時間/週"]
[]
[null,"算定する\n特定事業所加算",null,null,null,null,null,null,null,null,null,null,null,null,null,null,null,null,null,null,null,null,null,null,null,null,null,null,"加算",{"$f":"IF(ISERROR(FIND(\"Ⅰ\",E11)),IF(ISERROR(FIND(\"Ⅱ\",E11)),IF(ISERROR(FIND(\"Ⅲ\",E11)),IF(ISERROR(FIND(\"Ⅳ\",E11)),IF(ISERROR(FIND(\"Ⅴ\",E11)),0,5),40),IF(ISERROR(FIND(\"Ⅴ\",E11)),30,35)),20),10)","v":0},null,null,null,null,"利用者数\n(直近3ヶ月平均)",null,null,null,null,null,null,"月","月","月",null,null,"（例）","６月","７月","８月"]
[null,null,null,null,null,null,null,null,null,null,null,null,null,null,null,null,null,null,null,null,null,null,null,null,null,null,null,null,null,null,null,null,null,null,null,null,null,null,"人","各月の営業日数〔日〕",null,null,null,null,null,null,null,22,23,23]
[null,null,null,null,null,null,null,null,null,null,null,null,null,null,null,null,null,null,null,null,null,null,null,null,null,null,null,null,"有","はい"]
[null,"【体制要件１】",null,null,null,null,null,null,null,null,null,null,null,null,null,null,null,null,null,null,null,null,null,null,null,null,null,null,"無","いいえ",null,null,null,null,null,null,null,null,null,"各月の常勤の従業員が\n勤務すべき時間数〔時間〕",null,{"$f":"AP11","v":"月"},{"$f":"AQ11","v":"月"},{"$f":"AR11","v":"月"}]
[null,null,"①","個別の訪問介護員等に係る研修計画を策定し、当該計画に従い、研修を実施している又は実施することが予定されている。",null,null,null,null,null,null,null,null,null,null,null,null,null,null,null,null,null,null,null,null,null,null,null,null,null,null,null,null,null,null,null,null,null,null,null,null,null,{"$f":"ROUND($AT8*AP12/$AL8,0)","v":{"$error":"#DIV/0!"}},{"$f":"ROUND($AT8*AQ12/$AL8,0)","v":{"$error":"#DIV/0!"}},{"$f":"ROUND($AT8*AR12/$AL8,0)","v":{"$error":"#DIV/0!"}}]
[null,null,null,null,null,null,null,null,null,null,null,null,null,null,null,null,null,null,null,null,null,null,null,null,null,null,null,null,"①",2,null,null,null,null,null,null,null,"※保存、印刷前に左の整列ボタンを押して職種ごとに並べ替えた上で保存、印刷してください"]
[null,null,"②","訪問介護員等の技術指導を目的とした会議を定期的に開催している。",null,null,null,null,null,null,null,null,null,null,null,null,null,null,null,null,null,null,null,null,null,null,null,null,"②",2]
[null,null,"③","サービス提供責任者と訪問介護員等との間の情報伝達及び報告体制を整備している。",null,null,null,null,null,null,null,null,null,null,null,null,null,null,null,null,null,null,null,null,null,null,null,null,"③",2]
[null,null,"④","訪問介護員等に対する健康診断の定期的な実施体制を整備している。",null,null,null,null,null,null,null,null,null,null,null,null,null,null,null,null,null,null,null,null,null,null,null,null,"④",2]
[null,null,"⑤","緊急時等における対応方法を利用者に明示している。",null,null,null,null,null,null,null,null,null,null,null,null,null,null,null,null,null,null,null,null,null,null,null,null,"⑤",2,null,null,null,null,null,null,"職員確認欄"]
[null,null,"⑥","病院、診療所若しくは指定訪問看護ステーションの看護師との連携により24時間連絡できる体制を確保し、かつ、必要に応じて指定訪問看護を行うことができる体制を整備していること。",null,null,null,null,null,null,null,null,null,null,null,null,null,null,null,null,null,null,null,null,null,null,null,null,null,null,null,null,null,null,null,null,{"$f":"IF(COUNTA(AK24:AK173)=0,\"\",COUNTA(AK24:AK173))","v":""},{"$f":"IF(COUNTA(AL24:AL173)=0,\"\",COUNTA(AL24:AL173))","v":""},"","","","",{"$f":"IF(COUNTA(AQ24:AQ173)=0,\"\",COUNTA(AQ24:AQ173))","v":""},{"$f":"IF(COUNTA(AR24:AR173)=0,\"\",COUNTA(AR24:AR173))","v":""}]
[null,null,"⑦","看取り期における対応方針を定め、利用開始の際に、利用者又はその家族等に対して、当該対応方針の内容を説明し、同意を得ていること。"]
[null,null,"⑧","看取りに関する対応方針について、医師、看護職員、看護職員、介護支援専門員その他の職種の者による協議の上、当該事業所における看取りの実績等を踏まえ、適宜見直しを行う。",null,null,null,null,null,null,null,null,null,null,null,null,null,null,null,null,null,null,null,null,null,null,null,null,null,null,null,null,null,null,null,"職種No.","職種","形態","氏名","資格","実務経験年数",{"$f":"AP11","v":"月"},{"$f":"AQ11","v":"月"},{"$f":"AR11","v":"月"},null,null,null,null,null,null,null,null,null,null,"管理者",1,null,"4月","5月","6月","7月","8月","9月","10月","11月","12月","1月","2月"]
[null,null,"⑨","看取りに関する職員研修を行っている。",null,null,null,null,null,null,null,null,null,null,null,null,null,null,null,null,null,null,null,null,null,null,null,null,"①",2,null,null,null,null,1,{"$f":"VLOOKUP(AK24,BC$23:BD$25,2,0)","v":{"$error":"#N/A"}},null,null,null,null,null,null,null,null,null,null,null,null,null,null,null,null,null,null,"サービス提供責任者",2,null,{"$f":"IF(OR(AP24=\"○\",AP24>AP$15),AP$15,AP24)","v":{"$error":"#DIV/0!"}},{"$f":"IF(OR(AQ24=\"○\",AQ24>AQ$15),AQ$15,AQ24)","v":{"$error":"#DIV/0!"}},{"$f":"IF(OR(AR24=\"○\",AR24>AR$15),AR$15,AR24)","v":{"$error":"#DIV/0!"}},{"$f":"IF(OR(AS24=\"○\",AS24>AS$15),AS$15,AS24)","v":0},{"$f":"IF(OR(AT24=\"○\",AT24>AT$15),AT$15,AT24)","v":0},{"$f":"IF(OR(AU24=\"○\",AU24>AU$15),AU$15,AU24)","v":0},{"$f":"IF(OR(AV24=\"○\",AV24>AV$15),AV$15,AV24)","v":0},{"$f":"IF(OR(AW24=\"○\",AW24>AW$15),AW$15,AW24)","v":0},{"$f":"IF(OR(AX24=\"○\",AX24>AX$15),AX$15,AX24)","v":0},{"$f":"IF(OR(AY24=\"○\",AY24>AY$15),AY$15,AY24)","v":0},{"$f":"IF(OR(AZ24=\"○\",AZ24>AZ$15),AZ$15,AZ24)","v":0},null,{"$f":"AK24&AN24","v":""}]
[null,null,null,null,null,null,null,null,null,null,null,null,null,null,null,null,null,null,null,null,null,null,null,null,null,null,null,null,null,null,null,null,null,null,2,{"$error":"#N/A"},null,null,null,null,null,null,null,null,null,null,null,null,null,null,null,null,null,null,"訪問介護員",3,null,{"$error":"#DIV/0!"},{"$error":"#DIV/0!"},{"$error":"#DIV/0!"},0,0,0,0,0,0,0,0,null,""]
[null,"【人材要件】",null,null,null,null,null,null,null,null,null,null,null,null,null,null,null,null,null,null,null,null,null,null,null,null,null,null,null,null,null,null,null,null,3,{"$error":"#N/A"},null,null,null,null,null,null,null,null,null,null,null,null,null,null,null,null,null,null,null,null,null,{"$error":"#DIV/0!"},{"$error":"#DIV/0!"},{"$error":"#DIV/0!"},0,0,0,0,0,0,0,0,null,""]
[null,null,"ⅰ：訪問介護員要件",null,null,null,null,null,null,null,null,null,null,null,null,null,null,null,null,null,null,null,null,null,null,null,null,null,null,null,null,null,null,null,4,{"$error":"#N/A"},null,null,null,null,null,null,null,null,null,null,null,null,null,null,null,null,null,null,null,null,null,{"$error":"#DIV/0!"},{"$error":"#DIV/0!"},{"$error":"#DIV/0!"},0,0,0,0,0,0,0,0,null,""]
[null,null,null,null,null,null,null,{"$f":"AP11","v":"月"},{"$f":"AQ11","v":"月"},{"$f":"AR11","v":"月"},null,null,"平均",null,"割合計算",null,null,null,null,null,null,null,null,null,null,null,null,null,null,null,null,null,null,null,5,{"$error":"#N/A"},null,null,null,null,null,null,null,null,null,null,null,null,null,null,null,null,null,null,null,null,null,{"$error":"#DIV/0!"},{"$error":"#DIV/0!"},{"$error":"#DIV/0!"},0,0,0,0,0,0,0,0,null,""]
[null,null,null,"訪問介護員等\nの総数",null,null,null,{"$f":"ROUNDDOWN((SUMIF($AK$24:$AK$173,\"訪問介護員\",BF24:BF173)+SUMIF($AK$24:$AK$173,\"サービス提供責任者\",BF24:BF173))/AP15,2)","v":{"$error":"#DIV/0!"}},{"$f":"ROUNDDOWN((SUMIF($AK$24:$AK$173,\"訪問介護員\",BG24:BG173)+SUMIF($AK$24:$AK$173,\"サービス提供責任者\",BG24:BG173))/AQ15,2)","v":{"$error":"#DIV/0!"}},{"$error":"#DIV/0!"},null,null,{"$f":"ROUNDDOWN(AVERAGE(H29:J30),2)","v":{"$error":"#DIV/0!"}},null,{"$f":"ROUNDDOWN(M31,1)","v":{"$error":"#DIV/0!"}},"÷",{"$f":"ROUNDDOWN(M29,1)","v":{"$error":"#DIV/0!"}},"＝",{"$f":"ROUNDDOWN(O29/Q29,2)","v":{"$error":"#DIV/0!"}},{"$f":"IFERROR(IF(S29<0.3,\"≧30%×\",\"≧30%○\"),\"\")","v":""},null,null,null,null,null,null,null,null,null,null,null,null,null,null,6,{"$error":"#N/A"},null,null,null,null,null,null,null,null,null,null,null,null,null,null,null,null,null,null,null,null,null,{"$error":"#DIV/0!"},{"$error":"#DIV/0!"},{"$error":"#DIV/0!"},0,0,0,0,0,0,0,0,null,""]
[null,null,null,null,null,null,null,null,null,null,null,null,null,null,null,null,null,null,null,null,null,null,null,null,null,null,null,null,null,null,null,null,null,null,7,{"$error":"#N/A"},null,null,null,null,null,null,null,null,null,null,null,null,null,null,null,null,null,null,null,null,null,{"$error":"#DIV/0!"},{"$error":"#DIV/0!"},{"$error":"#DIV/0!"},0,0,0,0,0,0,0,0,null,""]
[null,null,null,"訪問介護員等のうち、\n介護福祉士の数",null,null,null,{"$f":"ROUNDDOWN((SUMIF($BR$24:$BR$173,\"訪問介護員介護福祉士\",BF$24:BF$173)+SUMIF($BR$24:$BR$173,\"サービス提供責任者介護福祉士\",BF$24:BF$173))/AP$15,2)","v":{"$error":"#DIV/0!"}},{"$f":"ROUNDDOWN((SUMIF($BR$24:$BR$173,\"訪問介護員介護福祉士\",BG$24:BG$173)+SUMIF($BR$24:$BR$173,\"サービス提供責任者介護福祉士\",BG$24:BG$173))/AQ$15,2)","v":{"$error":"#DIV/0!"}},{"$error":"#DIV/0!"},null,null,{"$f":"ROUNDDOWN(AVERAGE(H31:J32),2)","v":{"$error":"#DIV/0!"}},null,null,null,null,null,null,null,null,null,null,null,null,null,null,null,null,null,null,null,null,null,8,{"$error":"#N/A"},null,null,null,null,null,null,null,null,null,null,null,null,null,null,null,null,null,null,null,null,null,{"$error":"#DIV/0!"},{"$error":"#DIV/0!"},{"$error":"#DIV/0!"},0,0,0,0,0,0,0,0,null,""]
[null,null,null,null,null,null,null,null,null,null,null,null,null,null,{"$f":"ROUNDDOWN(M33,1)","v":{"$error":"#DIV/0!"}},"÷",{"$f":"ROUNDDOWN(M29,1)","v":{"$error":"#DIV/0!"}},"＝",{"$f":"ROUNDDOWN(O32/Q32,2)","v":{"$error":"#DIV/0!"}},{"$f":"IFERROR(IF(S32<0.5,\"≧50%×\",\"≧50%○\"),\"\")","v":""},null,null,null,null,null,null,null,null,"Ⅰ",{"$f":"IFERROR(IF(AND(S29<0.3,S32<0.5),\"×\",\"○\"),\"△\")","v":"△"},{"$f":"IFERROR(IF(COUNTIF(V40:X43,\"○\")<=1,\"×\",\"○\"),\"×\")","v":"×"},{"$f":"IFERROR(IF(AND(AD32=\"○\",AE32=\"○\"),\"○\",\"×\"),\"△\")","v":"×"},null,null,9,{"$error":"#N/A"},null,null,null,null,null,null,null,null,null,null,null,null,null,null,null,null,null,null,null,null,null,{"$error":"#DIV/0!"},{"$error":"#DIV/0!"},{"$error":"#DIV/0!"},0,0,0,0,0,0,0,0,null,""]
[null,null,null,"訪問介護員等のうち、\n条件1に該当する者",null,null,null,{"$f":"ROUNDDOWN((SUMIF($BR$24:$BR$173,\"訪問介護員介護福祉士\",BF24:BF173)+SUMIF($BR$24:$BR$173,\"訪問介護員実務者研修\",BF24:BF173)+SUMIF($BR$24:$BR$173,\"訪問介護員旧基礎研修\",BF24:BF173)+SUMIF($BR$24:$BR$173,\"訪問介護員旧ヘルパー1級\",BF24:BF173)+SUMIF($BR$24:$BR$173,\"サービス提供責任者介護福祉士\",BF24:BF173)+SUMIF($BR$24:$BR$173,\"サービス提供責任者実務者研修\",BF24:BF173)+SUMIF($BR$24:$BR$173,\"サービス提供責任者旧基礎研修\",BF24:BF173)+SUMIF($BR$24:$BR$173,\"サービス提供責任者旧ヘルパー1級\",BF24:BF173))/AP15,2)","v":{"$error":"#DIV/0!"}},{"$f":"ROUNDDOWN((SUMIF($BR$24:$BR$173,\"訪問介護員介護福祉士\",BG24:BG173)+SUMIF($BR$24:$BR$173,\"訪問介護員実務者研修\",BG24:BG173)+SUMIF($BR$24:$BR$173,\"訪問介護員旧基礎研修\",BG24:BG173)+SUMIF($BR$24:$BR$173,\"訪問介護員旧ヘルパー1級\",BG24:BG173)+SUMIF($BR$24:$BR$173,\"サービス提供責任者介護福祉士\",BG24:BG173)+SUMIF($BR$24:$BR$173,\"サービス提供責任者実務者研修\",BG24:BG173)+SUMIF($BR$24:$BR$173,\"サービス提供責任者旧基礎研修\",BG24:BG173)+SUMIF($BR$24:$BR$173,\"サービス提供責任者旧ヘルパー1級\",BG24:BG173))/AQ15,2)","v":{"$error":"#DIV/0!"}},{"$f":"ROUNDDOWN((SUMIF($BR$24:$BR$173,\"訪問介護員介護福祉士\",BH24:BH173)+SUMIF($BR$24:$BR$173,\"訪問介護員実務者研修\",BH24:BH173)+SUMIF($BR$24:$BR$173,\"訪問介護員旧基礎研修\",BH24:BH173)+SUMIF($BR$24:$BR$173,\"訪問介護員旧ヘルパー1級\",BH24:BH173)+SUMIF($BR$24:$BR$173,\"サービス提供責任者介護福祉士\",BH24:BH173)+SUMIF($BR$24:$BR$173,\"サービス提供責任者実務者研修\",BH24:BH173)+SUMIF($BR$24:$BR$173,\"サービス提供責任者旧基礎研修\",BH24:BH173)+SUMIF($BR$24:$BR$173,\"サービス提供責任者旧ヘルパー1級\",BH24:BH173))/AR15,2)","v":{"$error":"#DIV/0!"}},null,null,{"$f":"ROUNDDOWN(AVERAGE(H33:J34),2)","v":{"$error":"#DIV/0!"}},null,null,null,null,null,null,null,null,null,null,null,null,null,null,null,null,null,null,null,null,null,10,{"$error":"#N/A"},null,null,null,null,null,null,null,null,null,null,null,null,null,null,null,null,null,null,null,null,null,{"$error":"#DIV/0!"},{"$error":"#DIV/0!"},{"$error":"#DIV/0!"},0,0,0,0,0,0,0,0,null,""]
[null,null,null,null,null,null,null,null,null,null,null,null,null,null,null,null,null,null,null,null,null,null,null,null,null,null,null,null,"Ⅱ",{"$f":"IFERROR(IF(AND(S29<0.3,S32<0.5,OR(OR(V40=\"\",V40=\"×\"),OR(V42=\"\",V42=\"×\"))),\"×\",\"○\"),\"△\")","v":"△"},null,null,null,null,11,{"$error":"#N/A"},null,null,null,null,null,null,null,null,null,null,null,null,null,null,null,null,null,null,null,null,null,{"$error":"#DIV/0!"},{"$error":"#DIV/0!"},{"$error":"#DIV/0!"},0,0,0,0,0,0,0,0,null,""]
[null,null,null,"訪問介護員等のうち、\n条件2に該当する者",null,null,null,{"$f":"ROUNDDOWN((SUMIFS(BF$24:BF$173,$AK$24:$AK$173,\"サービス提供責任者\",$AO$24:$AO$173,\"7年以上\")+SUMIFS(BF$24:BF$173,$AK$24:$AK$173,\"訪問介護員\",$AO$24:$AO$173,\"7年以上\"))/AP15,2)","v":{"$error":"#DIV/0!"}},{"$f":"ROUNDDOWN((SUMIFS(BG$24:BG$173,$AK$24:$AK$173,\"サービス提供責任者\",$AO$24:$AO$173,\"7年以上\")+SUMIFS(BG$24:BG$173,$AK$24:$AK$173,\"訪問介護員\",$AO$24:$AO$173,\"7年以上\"))/AQ15,2)","v":{"$error":"#DIV/0!"}},{"$error":"#DIV/0!"},null,null,{"$f":"ROUNDDOWN(AVERAGE(H35:J36),2)","v":{"$error":"#DIV/0!"}},null,{"$f":"ROUNDDOWN(M35,1)","v":{"$error":"#DIV/0!"}},"÷",{"$f":"ROUNDDOWN(M29,1)","v":{"$error":"#DIV/0!"}},"＝",{"$f":"ROUNDDOWN(O35/Q35,2)","v":{"$error":"#DIV/0!"}},{"$f":"IFERROR(IF(S35<0.3,\"≧30%×\",\"≧30%○\"),\"\")","v":""},null,null,null,null,null,null,null,null,null,null,null,null,null,null,12,{"$error":"#N/A"},null,null,null,null,null,null,null,null,null,null,null,null,null,null,null,null,null,null,null,null,null,{"$error":"#DIV/0!"},{"$error":"#DIV/0!"},{"$error":"#DIV/0!"},0,0,0,0,0,0,0,0,null,""]
[null,null,null,null,null,null,null,null,null,null,null,null,null,null,null,null,null,null,null,null,null,null,null,null,null,null,null,null,"Ⅴ",{"$f":"IFERROR(IF(S35<0.3,\"×\",\"○\"),\"△\")","v":"△"},null,null,null,null,13,{"$error":"#N/A"},null,null,null,null,null,null,null,null,null,null,null,null,null,null,null,null,null,null,null,null,null,{"$error":"#DIV/0!"},{"$error":"#DIV/0!"},{"$error":"#DIV/0!"},0,0,0,0,0,0,0,0,null,""]
[null,null,null,"※条件1に該当するもの･･･介護福祉士又は実務者研修修了者若しくは旧介護職員基礎研修過程修了者若しくは旧1級過程修了者",null,null,null,null,null,null,null,null,null,null,null,null,null,null,null,null,null,null,null,null,null,null,null,null,null,null,null,null,null,null,14,{"$error":"#N/A"},null,null,null,null,null,null,null,null,null,null,null,null,null,null,null,null,null,null,null,null,null,{"$error":"#DIV/0!"},{"$error":"#DIV/0!"},{"$error":"#DIV/0!"},0,0,0,0,0,0,0,0,null,""]
[null,null,null,"※条件2に該当するもの･･･勤続年数7年以上の者",null,null,null,null,null,null,null,null,null,null,null,null,null,null,null,null,null,null,null,null,null,null,null,null,null,null,null,null,null,null,15,{"$error":"#N/A"},null,null,null,null,null,null,null,null,null,null,null,null,null,null,null,null,null,null,null,null,null,{"$error":"#DIV/0!"},{"$error":"#DIV/0!"},{"$error":"#DIV/0!"},0,0,0,0,0,0,0,0,null,""]
[null,null,"ⅱ：加算算定開始時のサービス提供責任者情報（その１）",null,null,null,null,null,null,null,null,null,null,null,null,null,null,null,null,null,null,null,null,null,null,null,null,null,null,null,null,null,null,null,16,{"$error":"#N/A"},null,null,null,null,null,null,null,null,null,null,null,null,null,null,null,null,null,null,null,null,null,{"$error":"#DIV/0!"},{"$error":"#DIV/0!"},{"$error":"#DIV/0!"},0,0,0,0,0,0,0,0,null,""]
[null,null,"①","全てのサービス提供責任者が３年以上の実務経験を有する介護福祉士又は５年以上の実務経験を有する介護職員基礎研修課程修了者若しくは１級課程修了者である。",null,null,null,null,null,null,null,null,null,null,null,null,null,null,null,null,null,null,null,null,null,null,null,null,"①",2,null,null,null,null,17,{"$error":"#N/A"},null,null,null,null,null,null,null,null,null,null,null,null,null,null,null,null,null,null,null,null,null,{"$error":"#DIV/0!"},{"$error":"#DIV/0!"},{"$error":"#DIV/0!"},0,0,0,0,0,0,0,0,null,""]
[null,null,null,null,null,null,null,null,null,null,null,null,null,null,null,null,null,null,null,null,null,null,null,null,null,null,null,null,null,null,null,null,null,null,18,{"$error":"#N/A"},null,null,null,null,null,null,null,null,null,null,null,null,null,null,null,null,null,null,null,null,null,{"$error":"#DIV/0!"},{"$error":"#DIV/0!"},{"$error":"#DIV/0!"},0,0,0,0,0,0,0,0,null,""]
[null,null,"②","基準上１人を超えるサービス提供責任者を配置することとなっている事業所においては、常勤のサービス提供責任者を２名以上配置している。(もしくは基準上1人を超える配置を要しない)",null,null,null,null,null,null,null,null,null,null,null,null,null,null,null,null,null,null,null,null,null,null,null,null,"②",2,null,null,null,null,19,{"$error":"#N/A"},null,null,null,null,null,null,null,null,null,null,null,null,null,null,null,null,null,null,null,null,null,{"$error":"#DIV/0!"},{"$error":"#DIV/0!"},{"$error":"#DIV/0!"},0,0,0,0,0,0,0,0,null,""]
[null,null,null,null,null,null,null,null,null,null,null,null,null,null,null,null,null,null,null,null,null,null,null,null,null,null,null,null,null,null,null,null,null,null,20,{"$error":"#N/A"},null,null,null,null,null,null,null,null,null,null,null,null,null,null,null,null,null,null,null,null,null,{"$error":"#DIV/0!"},{"$error":"#DIV/0!"},{"$error":"#DIV/0!"},0,0,0,0,0,0,0,0,null,""]
[null,null,null,null,null,null,null,null,null,null,null,null,null,null,null,null,null,null,null,null,null,null,null,null,null,null,null,null,null,null,null,null,null,null,21,{"$error":"#N/A"},null,null,null,null,null,null,null,null,null,null,null,null,null,null,null,null,null,null,null,null,null,{"$error":"#DIV/0!"},{"$error":"#DIV/0!"},{"$error":"#DIV/0!"},0,0,0,0,0,0,0,0,null,""]
[null,null,"ⅲ：加算算定開始時のサービス提供責任者情報（その２）",null,null,null,null,null,null,null,null,null,null,null,null,null,null,null,null,null,null,null,null,null,null,null,null,null,null,null,null,null,null,null,22,{"$error":"#N/A"},null,null,null,null,null,null,null,null,null,null,null,null,null,null,null,null,null,null,null,null,null,{"$error":"#DIV/0!"},{"$error":"#DIV/0!"},{"$error":"#DIV/0!"},0,0,0,0,0,0,0,0,null,""]
[null,null,"①","基準上配置すべきサービス提供責任者が２人以下であって、そのサービス提供責任者を常勤で配置している。かつ基準を上回る常勤サービス提供責任者を１人以上配置している。",null,null,null,null,null,null,null,null,null,null,null,null,null,null,null,null,null,null,null,null,null,null,null,null,"①",2,null,null,null,null,23,{"$error":"#N/A"},null,null,null,null,null,null,null,null,null,null,null,null,null,null,null,null,null,null,null,null,null,{"$error":"#DIV/0!"},{"$error":"#DIV/0!"},{"$error":"#DIV/0!"},0,0,0,0,0,0,0,0,null,""]
[null,null,null,null,null,null,null,null,null,null,null,null,null,null,null,null,null,null,null,null,null,null,null,null,null,null,null,null,null,null,null,null,null,null,24,{"$error":"#N/A"},null,null,null,null,null,null,null,null,null,null,null,null,null,null,null,null,null,null,null,null,null,{"$error":"#DIV/0!"},{"$error":"#DIV/0!"},{"$error":"#DIV/0!"},0,0,0,0,0,0,0,0,null,""]
[null,null,null,null,null,null,null,null,null,null,null,null,null,null,null,null,null,null,null,null,null,null,null,null,null,null,null,null,null,null,null,null,null,null,25,{"$error":"#N/A"},null,null,null,null,null,null,null,null,null,null,null,null,null,null,null,null,null,null,null,null,null,{"$error":"#DIV/0!"},{"$error":"#DIV/0!"},{"$error":"#DIV/0!"},0,0,0,0,0,0,0,0,null,""]
[null,null,"　　サービス提供責任者一覧　※申請時、資格者証(写)、実務経験証明書を添付してください。",null,null,null,null,null,null,null,null,null,null,null,null,null,null,null,null,null,null,null,null,null,null,null,null,null,null,null,null,null,null,null,26,{"$error":"#N/A"},null,null,null,null,null,null,null,null,null,null,null,null,null,null,null,null,null,null,null,null,null,{"$error":"#DIV/0!"},{"$error":"#DIV/0!"},{"$error":"#DIV/0!"},0,0,0,0,0,0,0,0,null,""]
[null,null,null,"氏名",null,null,"形態","資格",null,null,"実務経験",null,null,null,"氏名",null,null,"形態","資格",null,null,null,"実務経験",null,null,null,null,null,null,null,null,null,null,null,27,{"$error":"#N/A"},null,null,null,null,null,null,null,null,null,null,null,null,null,null,null,null,null,null,null,null,null,{"$error":"#DIV/0!"},{"$error":"#DIV/0!"},{"$error":"#DIV/0!"},0,0,0,0,0,0,0,0,null,""]
[null,null,1,null,null,null,null,null,null,null,null,null,null,6,null,null,null,null,null,null,null,null,null,null,null,null,null,null,null,null,null,null,null,null,28,{"$error":"#N/A"},null,null,null,null,null,null,null,null,null,null,null,null,null,null,null,null,null,null,null,null,null,{"$error":"#DIV/0!"},{"$error":"#DIV/0!"},{"$error":"#DIV/0!"},0,0,0,0,0,0,0,0,null,""]
[null,null,2,null,null,null,null,null,null,null,null,null,null,7,null,null,null,null,null,null,null,null,null,null,null,null,null,null,null,null,null,null,null,null,29,{"$error":"#N/A"},null,null,null,null,null,null,null,null,null,null,null,null,null,null,null,null,null,null,null,null,null,{"$error":"#DIV/0!"},{"$error":"#DIV/0!"},{"$error":"#DIV/0!"},0,0,0,0,0,0,0,0,null,""]
[null,null,3,null,null,null,null,null,null,null,null,null,null,8,null,null,null,null,null,null,null,null,null,null,null,null,null,null,null,null,null,null,null,null,30,{"$error":"#N/A"},null,null,null,null,null,null,null,null,null,null,null,null,null,null,null,null,null,null,null,null,null,{"$error":"#DIV/0!"},{"$error":"#DIV/0!"},{"$error":"#DIV/0!"},0,0,0,0,0,0,0,0,null,""]
[null,null,4,null,null,null,null,null,null,null,null,null,null,9,null,null,null,null,null,null,null,null,null,null,null,null,null,null,null,null,null,null,null,null,31,{"$error":"#N/A"},null,null,null,null,null,null,null,null,null,null,null,null,null,null,null,null,null,null,null,null,null,{"$error":"#DIV/0!"},{"$error":"#DIV/0!"},{"$error":"#DIV/0!"},0,0,0,0,0,0,0,0,null,""]
[null,null,5,null,null,null,null,null,null,null,null,null,null,10,null,null,null,null,null,null,null,null,null,null,null,null,null,null,null,null,null,null,null,null,32,{"$error":"#N/A"},null,null,null,null,null,null,null,null,null,null,null,null,null,null,null,null,null,null,null,null,null,{"$error":"#DIV/0!"},{"$error":"#DIV/0!"},{"$error":"#DIV/0!"},0,0,0,0,0,0,0,0,null,""]
[null,null,null,null,null,null,null,null,null,null,null,null,null,null,null,null,null,null,null,null,null,null,null,null,null,null,null,null,null,null,null,null,null,null,33,{"$f":"VLOOKUP(AK56,BC$23:BD$25,2,0)","v":{"$error":"#N/A"}},null,null,null,null,null,null,null,null,null,null,null,null,null,null,null,null,null,null,null,null,null,{"$f":"IF(OR(AP56=\"○\",AP56>AP$15),AP$15,AP56)","v":{"$error":"#DIV/0!"}},{"$f":"IF(OR(AQ56=\"○\",AQ56>AQ$15),AQ$15,AQ56)","v":{"$error":"#DIV/0!"}},{"$f":"IF(OR(AR56=\"○\",AR56>AR$15),AR$15,AR56)","v":{"$error":"#DIV/0!"}},{"$f":"IF(OR(AS56=\"○\",AS56>AS$15),AS$15,AS56)","v":0},{"$f":"IF(OR(AT56=\"○\",AT56>AT$15),AT$15,AT56)","v":0},{"$f":"IF(OR(AU56=\"○\",AU56>AU$15),AU$15,AU56)","v":0},{"$f":"IF(OR(AV56=\"○\",AV56>AV$15),AV$15,AV56)","v":0},{"$f":"IF(OR(AW56=\"○\",AW56>AW$15),AW$15,AW56)","v":0},{"$f":"IF(OR(AX56=\"○\",AX56>AX$15),AX$15,AX56)","v":0},{"$f":"IF(OR(AY56=\"○\",AY56>AY$15),AY$15,AY56)","v":0},{"$f":"IF(OR(AZ56=\"○\",AZ56>AZ$15),AZ$15,AZ56)","v":0},null,{"$f":"AK56&AN56","v":""}]
[null,"【重度要介護者等対応要件】",null,null,null,null,null,null,null,null,null,null,null,null,null,null,null,null,null,null,null,null,null,null,null,null,null,null,null,null,null,null,null,null,34,{"$error":"#N/A"},null,null,null,null,null,null,null,null,null,null,null,null,null,null,null,null,null,null,null,null,null,{"$error":"#DIV/0!"},{"$error":"#DIV/0!"},{"$error":"#DIV/0!"},0,0,0,0,0,0,0,0,null,""]
[null,null,"①","「前年度又は算定日が属する月の前３か月間における利用者の総数のうち、要介護４及び要介護５である者、認知症日常生活自立度ランクⅢ、Ⅳ又はMである者並びにたんの吸引等が必要な者を必要とする者が占める割合が２０％以上」を満たすか。",null,null,null,null,null,null,null,null,null,null,null,null,null,null,null,null,null,null,null,null,null,null,null,null,null,null,null,null,null,null,35,{"$error":"#N/A"},null,null,null,null,null,null,null,null,null,null,null,null,null,null,null,null,null,null,null,null,null,{"$error":"#DIV/0!"},{"$error":"#DIV/0!"},{"$error":"#DIV/0!"},0,0,0,0,0,0,0,0,null,""]
[null,null,null,null,null,null,null,null,null,null,null,null,null,null,null,null,null,null,null,null,null,null,null,null,null,null,null,null,null,null,null,null,null,null,36,{"$error":"#N/A"},null,null,null,null,null,null,null,null,null,null,null,null,null,null,null,null,null,null,null,null,null,{"$error":"#DIV/0!"},{"$error":"#DIV/0!"},{"$error":"#DIV/0!"},0,0,0,0,0,0,0,0,null,""]
[null,null,null,null,null,null,null,null,null,null,null,null,null,null,null,null,null,null,null,null,null,null,null,null,null,null,null,null,null,null,null,null,null,null,37,{"$error":"#N/A"},null,null,null,null,null,null,null,null,null,null,null,null,null,null,null,null,null,null,null,null,null,{"$error":"#DIV/0!"},{"$error":"#DIV/0!"},{"$error":"#DIV/0!"},0,0,0,0,0,0,0,0,null,""]
[null,null,null,null,null,null,null,null,null,null,null,null,null,null,null,null,null,null,null,null,null,null,null,null,null,null,null,null,null,null,null,null,null,null,38,{"$error":"#N/A"},null,null,null,null,null,null,null,null,null,null,null,null,null,null,null,null,null,null,null,null,null,{"$error":"#DIV/0!"},{"$error":"#DIV/0!"},{"$error":"#DIV/0!"},0,0,0,0,0,0,0,0,null,""]
[null,null,"②","「前年度又は算定日が属する月の前３か月間における利用者の総数のうち、看取り期の利用者への対応実績が1人以上」を満たすか。",null,null,null,null,null,null,null,null,null,null,null,null,null,null,null,null,null,null,null,null,null,null,null,null,null,null,null,null,null,null,39,{"$error":"#N/A"},null,null,null,null,null,null,null,null,null,null,null,null,null,null,null,null,null,null,null,null,null,{"$error":"#DIV/0!"},{"$error":"#DIV/0!"},{"$error":"#DIV/0!"},0,0,0,0,0,0,0,0,null,""]
[null,null,null,null,null,null,null,null,null,null,null,null,null,null,null,null,null,null,null,null,null,null,null,null,null,null,null,null,"重度",null,null,null,null,null,40,{"$error":"#N/A"},null,null,null,null,null,null,null,null,null,null,null,null,null,null,null,null,null,null,null,null,null,{"$error":"#DIV/0!"},{"$error":"#DIV/0!"},{"$error":"#DIV/0!"},0,0,0,0,0,0,0,0,null,""]
[null,null,null,null,null,null,null,null,null,null,null,null,null,null,null,null,null,null,null,null,null,null,null,null,null,null,null,null,"①",1,null,null,null,null,41,{"$error":"#N/A"},null,null,null,null,null,null,null,null,null,null,null,null,null,null,null,null,null,null,null,null,null,{"$error":"#DIV/0!"},{"$error":"#DIV/0!"},{"$error":"#DIV/0!"},0,0,0,0,0,0,0,0,null,""]
[null,null,null,null,null,null,null,null,null,null,null,null,null,null,null,null,null,null,null,null,null,null,null,null,null,null,null,null,"②",1,null,null,null,null,42,{"$error":"#N/A"},null,null,null,null,null,null,null,null,null,null,null,null,null,null,null,null,null,null,null,null,null,{"$error":"#DIV/0!"},{"$error":"#DIV/0!"},{"$error":"#DIV/0!"},0,0,0,0,0,0,0,0,null,""]
[null,null,null,null,null,null,null,null,null,null,null,null,null,null,null,null,null,null,null,null,null,null,null,null,null,null,null,null,null,null,null,null,null,null,43,{"$error":"#N/A"},null,null,null,null,null,null,null,null,null,null,null,null,null,null,null,null,null,null,null,null,null,{"$error":"#DIV/0!"},{"$error":"#DIV/0!"},{"$error":"#DIV/0!"},0,0,0,0,0,0,0,0,null,""]
[null,null,null,null,null,null,null,null,null,null,null,null,null,null,null,null,null,null,null,null,null,null,null,null,null,null,null,null,null,null,null,null,null,null,44,{"$error":"#N/A"},null,null,null,null,null,null,null,null,null,null,null,null,null,null,null,null,null,null,null,null,null,{"$error":"#DIV/0!"},{"$error":"#DIV/0!"},{"$error":"#DIV/0!"},0,0,0,0,0,0,0,0,null,""]
[null,null,null,null,null,null,null,null,null,null,null,null,null,null,null,null,null,null,null,null,null,null,null,null,null,null,null,null,null,null,null,null,null,null,45,{"$error":"#N/A"},null,null,null,null,null,null,null,null,null,null,null,null,null,null,null,null,null,null,null,null,null,{"$error":"#DIV/0!"},{"$error":"#DIV/0!"},{"$error":"#DIV/0!"},0,0,0,0,0,0,0,0,null,""]
[null,null,null,null,null,null,null,null,null,null,null,null,null,null,null,null,null,null,null,null,null,null,null,null,null,null,null,null,null,null,null,null,null,null,46,{"$error":"#N/A"},null,null,null,null,null,null,null,null,null,null,null,null,null,null,null,null,null,null,null,null,null,{"$error":"#DIV/0!"},{"$error":"#DIV/0!"},{"$error":"#DIV/0!"},0,0,0,0,0,0,0,0,null,""]
[null,null,null,null,null,null,null,null,null,null,null,null,null,null,null,null,null,null,null,null,null,null,null,null,null,null,null,null,null,null,null,null,null,null,47,{"$error":"#N/A"},null,null,null,null,null,null,null,null,null,null,null,null,null,null,null,null,null,null,null,null,null,{"$error":"#DIV/0!"},{"$error":"#DIV/0!"},{"$error":"#DIV/0!"},0,0,0,0,0,0,0,0,null,""]
[null,null,null,null,null,null,null,null,null,null,null,null,null,null,null,null,null,null,null,null,null,null,null,null,null,null,null,null,null,null,null,null,null,null,48,{"$error":"#N/A"},null,null,null,null,null,null,null,null,null,null,null,null,null,null,null,null,null,null,null,null,null,{"$error":"#DIV/0!"},{"$error":"#DIV/0!"},{"$error":"#DIV/0!"},0,0,0,0,0,0,0,0,null,""]
[null,null,null,null,null,null,null,null,null,null,null,null,null,null,null,null,null,null,null,null,null,null,null,null,null,null,null,null,null,null,null,null,null,null,49,{"$error":"#N/A"},null,null,null,null,null,null,null,null,null,null,null,null,null,null,null,null,null,null,null,null,null,{"$error":"#DIV/0!"},{"$error":"#DIV/0!"},{"$error":"#DIV/0!"},0,0,0,0,0,0,0,0,null,""]
[null,null,null,null,null,null,null,null,null,null,null,null,null,null,null,null,null,null,null,null,null,null,null,null,null,null,null,null,null,null,null,null,null,null,50,{"$error":"#N/A"},null,null,null,null,null,null,null,null,null,null,null,null,null,null,null,null,null,null,null,null,null,{"$error":"#DIV/0!"},{"$error":"#DIV/0!"},{"$error":"#DIV/0!"},0,0,0,0,0,0,0,0,null,""]
[null,null,null,null,null,null,null,null,null,null,null,null,null,null,null,null,null,null,null,null,null,null,null,null,null,null,null,null,null,null,null,null,null,null,51,{"$error":"#N/A"},null,null,null,null,null,null,null,null,null,null,null,null,null,null,null,null,null,null,null,null,null,{"$error":"#DIV/0!"},{"$error":"#DIV/0!"},{"$error":"#DIV/0!"},0,0,0,0,0,0,0,0,null,""]
[null,null,null,null,null,null,null,null,null,null,null,null,null,null,null,null,null,null,null,null,null,null,null,null,null,null,null,null,null,null,null,null,null,null,52,{"$error":"#N/A"},null,null,null,null,null,null,null,null,null,null,null,null,null,null,null,null,null,null,null,null,null,{"$error":"#DIV/0!"},{"$error":"#DIV/0!"},{"$error":"#DIV/0!"},0,0,0,0,0,0,0,0,null,""]
[null,null,null,null,null,null,null,null,null,null,null,null,null,null,null,null,null,null,null,null,null,null,null,null,null,null,null,null,null,null,null,null,null,null,53,{"$error":"#N/A"},null,null,null,null,null,null,null,null,null,null,null,null,null,null,null,null,null,null,null,null,null,{"$error":"#DIV/0!"},{"$error":"#DIV/0!"},{"$error":"#DIV/0!"},0,0,0,0,0,0,0,0,null,""]
[null,null,null,null,null,null,null,null,null,null,null,null,null,null,null,null,null,null,null,null,null,null,null,null,null,null,null,null,null,null,null,null,null,null,54,{"$error":"#N/A"},null,null,null,null,null,null,null,null,null,null,null,null,null,null,null,null,null,null,null,null,null,{"$error":"#DIV/0!"},{"$error":"#DIV/0!"},{"$error":"#DIV/0!"},0,0,0,0,0,0,0,0,null,""]
[null,null,null,null,null,null,null,null,null,null,null,null,null,null,null,null,null,null,null,null,null,null,null,null,null,null,null,null,null,null,null,null,null,null,55,{"$error":"#N/A"},null,null,null,null,null,null,null,null,null,null,null,null,null,null,null,null,null,null,null,null,null,{"$error":"#DIV/0!"},{"$error":"#DIV/0!"},{"$error":"#DIV/0!"},0,0,0,0,0,0,0,0,null,""]
[null,null,null,null,null,null,null,null,null,null,null,null,null,null,null,null,null,null,null,null,null,null,null,null,null,null,null,null,null,null,null,null,null,null,56,{"$error":"#N/A"},null,null,null,null,null,null,null,null,null,null,null,null,null,null,null,null,null,null,null,null,null,{"$error":"#DIV/0!"},{"$error":"#DIV/0!"},{"$error":"#DIV/0!"},0,0,0,0,0,0,0,0,null,""]
[null,null,null,null,null,null,null,null,null,null,null,null,null,null,null,null,null,null,null,null,null,null,null,null,null,null,null,null,null,null,null,null,null,null,57,{"$error":"#N/A"},null,null,null,null,null,null,null,null,null,null,null,null,null,null,null,null,null,null,null,null,null,{"$error":"#DIV/0!"},{"$error":"#DIV/0!"},{"$error":"#DIV/0!"},0,0,0,0,0,0,0,0,null,""]
[null,null,null,null,null,null,null,null,null,null,null,null,null,null,null,null,null,null,null,null,null,null,null,null,null,null,null,null,null,null,null,null,null,null,58,{"$error":"#N/A"},null,null,null,null,null,null,null,null,null,null,null,null,null,null,null,null,null,null,null,null,null,{"$error":"#DIV/0!"},{"$error":"#DIV/0!"},{"$error":"#DIV/0!"},0,0,0,0,0,0,0,0,null,""]
[null,null,null,null,null,null,null,null,null,null,null,null,null,null,null,null,null,null,null,null,null,null,null,null,null,null,null,null,null,null,null,null,null,null,59,{"$error":"#N/A"},null,null,null,null,null,null,null,null,null,null,null,null,null,null,null,null,null,null,null,null,null,{"$error":"#DIV/0!"},{"$error":"#DIV/0!"},{"$error":"#DIV/0!"},0,0,0,0,0,0,0,0,null,""]
[null,null,null,null,null,null,null,null,null,null,null,null,null,null,null,null,null,null,null,null,null,null,null,null,null,null,null,null,null,null,null,null,null,null,60,{"$error":"#N/A"},null,null,null,null,null,null,null,null,null,null,null,null,null,null,null,null,null,null,null,null,null,{"$error":"#DIV/0!"},{"$error":"#DIV/0!"},{"$error":"#DIV/0!"},0,0,0,0,0,0,0,0,null,""]
[null,null,null,null,null,null,null,null,null,null,null,null,null,null,null,null,null,null,null,null,null,null,null,null,null,null,null,null,null,null,null,null,null,null,61,{"$error":"#N/A"},null,null,null,null,null,null,null,null,null,null,null,null,null,null,null,null,null,null,null,null,null,{"$error":"#DIV/0!"},{"$error":"#DIV/0!"},{"$error":"#DIV/0!"},0,0,0,0,0,0,0,0,null,""]
[null,null,null,null,null,null,null,null,null,null,null,null,null,null,null,null,null,null,null,null,null,null,null,null,null,null,null,null,null,null,null,null,null,null,62,{"$error":"#N/A"},null,null,null,null,null,null,null,null,null,null,null,null,null,null,null,null,null,null,null,null,null,{"$error":"#DIV/0!"},{"$error":"#DIV/0!"},{"$error":"#DIV/0!"},0,0,0,0,0,0,0,0,null,""]
[null,null,null,null,null,null,null,null,null,null,null,null,null,null,null,null,null,null,null,null,null,null,null,null,null,null,null,null,null,null,null,null,null,null,63,{"$error":"#N/A"},null,null,null,null,null,null,null,null,null,null,null,null,null,null,null,null,null,null,null,null,null,{"$error":"#DIV/0!"},{"$error":"#DIV/0!"},{"$error":"#DIV/0!"},0,0,0,0,0,0,0,0,null,""]
[null,null,null,null,null,null,null,null,null,null,null,null,null,null,null,null,null,null,null,null,null,null,null,null,null,null,null,null,null,null,null,null,null,null,64,{"$error":"#N/A"},null,null,null,null,null,null,null,null,null,null,null,null,null,null,null,null,null,null,null,null,null,{"$error":"#DIV/0!"},{"$error":"#DIV/0!"},{"$error":"#DIV/0!"},0,0,0,0,0,0,0,0,null,""]
[null,null,null,null,null,null,null,null,null,null,null,null,null,null,null,null,null,null,null,null,null,null,null,null,null,null,null,null,null,null,null,null,null,null,65,{"$f":"VLOOKUP(AK88,BC$23:BD$25,2,0)","v":{"$error":"#N/A"}},null,null,null,null,null,null,null,null,null,null,null,null,null,null,null,null,null,null,null,null,null,{"$f":"IF(OR(AP88=\"○\",AP88>AP$15),AP$15,AP88)","v":{"$error":"#DIV/0!"}},{"$f":"IF(OR(AQ88=\"○\",AQ88>AQ$15),AQ$15,AQ88)","v":{"$error":"#DIV/0!"}},{"$f":"IF(OR(AR88=\"○\",AR88>AR$15),AR$15,AR88)","v":{"$error":"#DIV/0!"}},{"$f":"IF(OR(AS88=\"○\",AS88>AS$15),AS$15,AS88)","v":0},{"$f":"IF(OR(AT88=\"○\",AT88>AT$15),AT$15,AT88)","v":0},{"$f":"IF(OR(AU88=\"○\",AU88>AU$15),AU$15,AU88)","v":0},{"$f":"IF(OR(AV88=\"○\",AV88>AV$15),AV$15,AV88)","v":0},{"$f":"IF(OR(AW88=\"○\",AW88>AW$15),AW$15,AW88)","v":0},{"$f":"IF(OR(AX88=\"○\",AX88>AX$15),AX$15,AX88)","v":0},{"$f":"IF(OR(AY88=\"○\",AY88>AY$15),AY$15,AY88)","v":0},{"$f":"IF(OR(AZ88=\"○\",AZ88>AZ$15),AZ$15,AZ88)","v":0},null,{"$f":"AK88&AN88","v":""}]
[null,null,null,null,null,null,null,null,null,null,null,null,null,null,null,null,null,null,null,null,null,null,null,null,null,null,null,null,null,null,null,null,null,null,66,{"$error":"#N/A"},null,null,null,null,null,null,null,null,null,null,null,null,null,null,null,null,null,null,null,null,null,{"$error":"#DIV/0!"},{"$error":"#DIV/0!"},{"$error":"#DIV/0!"},0,0,0,0,0,0,0,0,null,""]
[null,null,null,null,null,null,null,null,null,null,null,null,null,null,null,null,null,null,null,null,null,null,null,null,null,null,null,null,null,null,null,null,null,null,67,{"$error":"#N/A"},null,null,null,null,null,null,null,null,null,null,null,null,null,null,null,null,null,null,null,null,null,{"$error":"#DIV/0!"},{"$error":"#DIV/0!"},{"$error":"#DIV/0!"},0,0,0,0,0,0,0,0,null,""]
[null,null,null,null,null,null,null,null,null,null,null,null,null,null,null,null,null,null,null,null,null,null,null,null,null,null,null,null,null,null,null,null,null,null,68,{"$error":"#N/A"},null,null,null,null,null,null,null,null,null,null,null,null,null,null,null,null,null,null,null,null,null,{"$error":"#DIV/0!"},{"$error":"#DIV/0!"},{"$error":"#DIV/0!"},0,0,0,0,0,0,0,0,null,""]
[null,null,null,null,null,null,null,null,null,null,null,null,null,null,null,null,null,null,null,null,null,null,null,null,null,null,null,null,null,null,null,null,null,null,69,{"$error":"#N/A"},null,null,null,null,null,null,null,null,null,null,null,null,null,null,null,null,null,null,null,null,null,{"$error":"#DIV/0!"},{"$error":"#DIV/0!"},{"$error":"#DIV/0!"},0,0,0,0,0,0,0,0,null,""]
[null,null,null,null,null,null,null,null,null,null,null,null,null,null,null,null,null,null,null,null,null,null,null,null,null,null,null,null,null,null,null,null,null,null,70,{"$error":"#N/A"},null,null,null,null,null,null,null,null,null,null,null,null,null,null,null,null,null,null,null,null,null,{"$error":"#DIV/0!"},{"$error":"#DIV/0!"},{"$error":"#DIV/0!"},0,0,0,0,0,0,0,0,null,""]
[null,null,null,null,null,null,null,null,null,null,null,null,null,null,null,null,null,null,null,null,null,null,null,null,null,null,null,null,null,null,null,null,null,null,71,{"$error":"#N/A"},null,null,null,null,null,null,null,null,null,null,null,null,null,null,null,null,null,null,null,null,null,{"$error":"#DIV/0!"},{"$error":"#DIV/0!"},{"$error":"#DIV/0!"},0,0,0,0,0,0,0,0,null,""]
[null,null,null,null,null,null,null,null,null,null,null,null,null,null,null,null,null,null,null,null,null,null,null,null,null,null,null,null,null,null,null,null,null,null,72,{"$error":"#N/A"},null,null,null,null,null,null,null,null,null,null,null,null,null,null,null,null,null,null,null,null,null,{"$error":"#DIV/0!"},{"$error":"#DIV/0!"},{"$error":"#DIV/0!"},0,0,0,0,0,0,0,0,null,""]
[null,null,null,null,null,null,null,null,null,null,null,null,null,null,null,null,null,null,null,null,null,null,null,null,null,null,null,null,null,null,null,null,null,null,73,{"$error":"#N/A"},null,null,null,null,null,null,null,null,null,null,null,null,null,null,null,null,null,null,null,null,null,{"$error":"#DIV/0!"},{"$error":"#DIV/0!"},{"$error":"#DIV/0!"},0,0,0,0,0,0,0,0,null,""]
[null,null,null,null,null,null,null,null,null,null,null,null,null,null,null,null,null,null,null,null,null,null,null,null,null,null,null,null,null,null,null,null,null,null,74,{"$error":"#N/A"},null,null,null,null,null,null,null,null,null,null,null,null,null,null,null,null,null,null,null,null,null,{"$error":"#DIV/0!"},{"$error":"#DIV/0!"},{"$error":"#DIV/0!"},0,0,0,0,0,0,0,0,null,""]
[null,null,null,null,null,null,null,null,null,null,null,null,null,null,null,null,null,null,null,null,null,null,null,null,null,null,null,null,null,null,null,null,null,null,75,{"$error":"#N/A"},null,null,null,null,null,null,null,null,null,null,null,null,null,null,null,null,null,null,null,null,null,{"$error":"#DIV/0!"},{"$error":"#DIV/0!"},{"$error":"#DIV/0!"},0,0,0,0,0,0,0,0,null,""]
[null,null,null,null,null,null,null,null,null,null,null,null,null,null,null,null,null,null,null,null,null,null,null,null,null,null,null,null,null,null,null,null,null,null,76,{"$error":"#N/A"},null,null,null,null,null,null,null,null,null,null,null,null,null,null,null,null,null,null,null,null,null,{"$error":"#DIV/0!"},{"$error":"#DIV/0!"},{"$error":"#DIV/0!"},0,0,0,0,0,0,0,0,null,""]
[null,null,null,null,null,null,null,null,null,null,null,null,null,null,null,null,null,null,null,null,null,null,null,null,null,null,null,null,null,null,null,null,null,null,77,{"$error":"#N/A"},null,null,null,null,null,null,null,null,null,null,null,null,null,null,null,null,null,null,null,null,null,{"$error":"#DIV/0!"},{"$error":"#DIV/0!"},{"$error":"#DIV/0!"},0,0,0,0,0,0,0,0,null,""]
[null,null,null,null,null,null,null,null,null,null,null,null,null,null,null,null,null,null,null,null,null,null,null,null,null,null,null,null,null,null,null,null,null,null,78,{"$error":"#N/A"},null,null,null,null,null,null,null,null,null,null,null,null,null,null,null,null,null,null,null,null,null,{"$error":"#DIV/0!"},{"$error":"#DIV/0!"},{"$error":"#DIV/0!"},0,0,0,0,0,0,0,0,null,""]
[null,null,null,null,null,null,null,null,null,null,null,null,null,null,null,null,null,null,null,null,null,null,null,null,null,null,null,null,null,null,null,null,null,null,79,{"$error":"#N/A"},null,null,null,null,null,null,null,null,null,null,null,null,null,null,null,null,null,null,null,null,null,{"$error":"#DIV/0!"},{"$error":"#DIV/0!"},{"$error":"#DIV/0!"},0,0,0,0,0,0,0,0,null,""]
[null,null,null,null,null,null,null,null,null,null,null,null,null,null,null,null,null,null,null,null,null,null,null,null,null,null,null,null,null,null,null,null,null,null,80,{"$error":"#N/A"},null,null,null,null,null,null,null,null,null,null,null,null,null,null,null,null,null,null,null,null,null,{"$error":"#DIV/0!"},{"$error":"#DIV/0!"},{"$error":"#DIV/0!"},0,0,0,0,0,0,0,0,null,""]
[null,null,null,null,null,null,null,null,null,null,null,null,null,null,null,null,null,null,null,null,null,null,null,null,null,null,null,null,null,null,null,null,null,null,81,{"$error":"#N/A"},null,null,null,null,null,null,null,null,null,null,null,null,null,null,null,null,null,null,null,null,null,{"$error":"#DIV/0!"},{"$error":"#DIV/0!"},{"$error":"#DIV/0!"},0,0,0,0,0,0,0,0,null,""]
[null,null,null,null,null,null,null,null,null,null,null,null,null,null,null,null,null,null,null,null,null,null,null,null,null,null,null,null,null,null,null,null,null,null,82,{"$error":"#N/A"},null,null,null,null,null,null,null,null,null,null,null,null,null,null,null,null,null,null,null,null,null,{"$error":"#DIV/0!"},{"$error":"#DIV/0!"},{"$error":"#DIV/0!"},0,0,0,0,0,0,0,0,null,""]
[null,null,null,null,null,null,null,null,null,null,null,null,null,null,null,null,null,null,null,null,null,null,null,null,null,null,null,null,null,null,null,null,null,null,83,{"$error":"#N/A"},null,null,null,null,null,null,null,null,null,null,null,null,null,null,null,null,null,null,null,null,null,{"$error":"#DIV/0!"},{"$error":"#DIV/0!"},{"$error":"#DIV/0!"},0,0,0,0,0,0,0,0,null,""]
[null,null,null,null,null,null,null,null,null,null,null,null,null,null,null,null,null,null,null,null,null,null,null,null,null,null,null,null,null,null,null,null,null,null,84,{"$error":"#N/A"},null,null,null,null,null,null,null,null,null,null,null,null,null,null,null,null,null,null,null,null,null,{"$error":"#DIV/0!"},{"$error":"#DIV/0!"},{"$error":"#DIV/0!"},0,0,0,0,0,0,0,0,null,""]
[null,null,null,null,null,null,null,null,null,null,null,null,null,null,null,null,null,null,null,null,null,null,null,null,null,null,null,null,null,null,null,null,null,null,85,{"$error":"#N/A"},null,null,null,null,null,null,null,null,null,null,null,null,null,null,null,null,null,null,null,null,null,{"$error":"#DIV/0!"},{"$error":"#DIV/0!"},{"$error":"#DIV/0!"},0,0,0,0,0,0,0,0,null,""]
[null,null,null,null,null,null,null,null,null,null,null,null,null,null,null,null,null,null,null,null,null,null,null,null,null,null,null,null,null,null,null,null,null,null,86,{"$error":"#N/A"},null,null,null,null,null,null,null,null,null,null,null,null,null,null,null,null,null,null,null,null,null,{"$error":"#DIV/0!"},{"$error":"#DIV/0!"},{"$error":"#DIV/0!"},0,0,0,0,0,0,0,0,null,""]
[null,null,null,null,null,null,null,null,null,null,null,null,null,null,null,null,null,null,null,null,null,null,null,null,null,null,null,null,null,null,null,null,null,null,87,{"$error":"#N/A"},null,null,null,null,null,null,null,null,null,null,null,null,null,null,null,null,null,null,null,null,null,{"$error":"#DIV/0!"},{"$error":"#DIV/0!"},{"$error":"#DIV/0!"},0,0,0,0,0,0,0,0,null,""]
[null,null,null,null,null,null,null,null,null,null,null,null,null,null,null,null,null,null,null,null,null,null,null,null,null,null,null,null,null,null,null,null,null,null,88,{"$error":"#N/A"},null,null,null,null,null,null,null,null,null,null,null,null,null,null,null,null,null,null,null,null,null,{"$error":"#DIV/0!"},{"$error":"#DIV/0!"},{"$error":"#DIV/0!"},0,0,0,0,0,0,0,0,null,""]
[null,null,null,null,null,null,null,null,null,null,null,null,null,null,null,null,null,null,null,null,null,null,null,null,null,null,null,null,null,null,null,null,null,null,89,{"$error":"#N/A"},null,null,null,null,null,null,null,null,null,null,null,null,null,null,null,null,null,null,null,null,null,{"$error":"#DIV/0!"},{"$error":"#DIV/0!"},{"$error":"#DIV/0!"},0,0,0,0,0,0,0,0,null,""]
[null,null,null,null,null,null,null,null,null,null,null,null,null,null,null,null,null,null,null,null,null,null,null,null,null,null,null,null,null,null,null,null,null,null,90,{"$error":"#N/A"},null,null,null,null,null,null,null,null,null,null,null,null,null,null,null,null,null,null,null,null,null,{"$error":"#DIV/0!"},{"$error":"#DIV/0!"},{"$error":"#DIV/0!"},0,0,0,0,0,0,0,0,null,""]
[null,null,null,null,null,null,null,null,null,null,null,null,null,null,null,null,null,null,null,null,null,null,null,null,null,null,null,null,null,null,null,null,null,null,91,{"$error":"#N/A"},null,null,null,null,null,null,null,null,null,null,null,null,null,null,null,null,null,null,null,null,null,{"$error":"#DIV/0!"},{"$error":"#DIV/0!"},{"$error":"#DIV/0!"},0,0,0,0,0,0,0,0,null,""]
[null,null,null,null,null,null,null,null,null,null,null,null,null,null,null,null,null,null,null,null,null,null,null,null,null,null,null,null,null,null,null,null,null,null,92,{"$error":"#N/A"},null,null,null,null,null,null,null,null,null,null,null,null,null,null,null,null,null,null,null,null,null,{"$error":"#DIV/0!"},{"$error":"#DIV/0!"},{"$error":"#DIV/0!"},0,0,0,0,0,0,0,0,null,""]
[null,null,null,null,null,null,null,null,null,null,null,null,null,null,null,null,null,null,null,null,null,null,null,null,null,null,null,null,null,null,null,null,null,null,93,{"$error":"#N/A"},null,null,null,null,null,null,null,null,null,null,null,null,null,null,null,null,null,null,null,null,null,{"$error":"#DIV/0!"},{"$error":"#DIV/0!"},{"$error":"#DIV/0!"},0,0,0,0,0,0,0,0,null,""]
[null,null,null,null,null,null,null,null,null,null,null,null,null,null,null,null,null,null,null,null,null,null,null,null,null,null,null,null,null,null,null,null,null,null,94,{"$error":"#N/A"},null,null,null,null,null,null,null,null,null,null,null,null,null,null,null,null,null,null,null,null,null,{"$error":"#DIV/0!"},{"$error":"#DIV/0!"},{"$error":"#DIV/0!"},0,0,0,0,0,0,0,0,null,""]
[null,null,null,null,null,null,null,null,null,null,null,null,null,null,null,null,null,null,null,null,null,null,null,null,null,null,null,null,null,null,null,null,null,null,95,{"$error":"#N/A"},null,null,null,null,null,null,null,null,null,null,null,null,null,null,null,null,null,null,null,null,null,{"$error":"#DIV/0!"},{"$error":"#DIV/0!"},{"$error":"#DIV/0!"},0,0,0,0,0,0,0,0,null,""]
[null,null,null,null,null,null,null,null,null,null,null,null,null,null,null,null,null,null,null,null,null,null,null,null,null,null,null,null,null,null,null,null,null,null,96,{"$error":"#N/A"},null,null,null,null,null,null,null,null,null,null,null,null,null,null,null,null,null,null,null,null,null,{"$error":"#DIV/0!"},{"$error":"#DIV/0!"},{"$error":"#DIV/0!"},0,0,0,0,0,0,0,0,null,""]
[null,null,null,null,null,null,null,null,null,null,null,null,null,null,null,null,null,null,null,null,null,null,null,null,null,null,null,null,null,null,null,null,null,null,97,{"$f":"VLOOKUP(AK120,BC$23:BD$25,2,0)","v":{"$error":"#N/A"}},null,null,null,null,null,null,null,null,null,null,null,null,null,null,null,null,null,null,null,null,null,{"$f":"IF(OR(AP120=\"○\",AP120>AP$15),AP$15,AP120)","v":{"$error":"#DIV/0!"}},{"$f":"IF(OR(AQ120=\"○\",AQ120>AQ$15),AQ$15,AQ120)","v":{"$error":"#DIV/0!"}},{"$f":"IF(OR(AR120=\"○\",AR120>AR$15),AR$15,AR120)","v":{"$error":"#DIV/0!"}},{"$f":"IF(OR(AS120=\"○\",AS120>AS$15),AS$15,AS120)","v":0},{"$f":"IF(OR(AT120=\"○\",AT120>AT$15),AT$15,AT120)","v":0},{"$f":"IF(OR(AU120=\"○\",AU120>AU$15),AU$15,AU120)","v":0},{"$f":"IF(OR(AV120=\"○\",AV120>AV$15),AV$15,AV120)","v":0},{"$f":"IF(OR(AW120=\"○\",AW120>AW$15),AW$15,AW120)","v":0},{"$f":"IF(OR(AX120=\"○\",AX120>AX$15),AX$15,AX120)","v":0},{"$f":"IF(OR(AY120=\"○\",AY120>AY$15),AY$15,AY120)","v":0},{"$f":"IF(OR(AZ120=\"○\",AZ120>AZ$15),AZ$15,AZ120)","v":0},null,{"$f":"AK120&AN120","v":""}]
[null,null,null,null,null,null,null,null,null,null,null,null,null,null,null,null,null,null,null,null,null,null,null,null,null,null,null,null,null,null,null,null,null,null,98,{"$error":"#N/A"},null,null,null,null,null,null,null,null,null,null,null,null,null,null,null,null,null,null,null,null,null,{"$error":"#DIV/0!"},{"$error":"#DIV/0!"},{"$error":"#DIV/0!"},0,0,0,0,0,0,0,0,null,""]
[null,null,null,null,null,null,null,null,null,null,null,null,null,null,null,null,null,null,null,null,null,null,null,null,null,null,null,null,null,null,null,null,null,null,99,{"$error":"#N/A"},null,null,null,null,null,null,null,null,null,null,null,null,null,null,null,null,null,null,null,null,null,{"$error":"#DIV/0!"},{"$error":"#DIV/0!"},{"$error":"#DIV/0!"},0,0,0,0,0,0,0,0,null,""]
[null,null,null,null,null,null,null,null,null,null,null,null,null,null,null,null,null,null,null,null,null,null,null,null,null,null,null,null,null,null,null,null,null,null,100,{"$error":"#N/A"},null,null,null,null,null,null,null,null,null,null,null,null,null,null,null,null,null,null,null,null,null,{"$error":"#DIV/0!"},{"$error":"#DIV/0!"},{"$error":"#DIV/0!"},0,0,0,0,0,0,0,0,null,""]
[null,null,null,null,null,null,null,null,null,null,null,null,null,null,null,null,null,null,null,null,null,null,null,null,null,null,null,null,null,null,null,null,null,null,101,{"$error":"#N/A"},null,null,null,null,null,null,null,null,null,null,null,null,null,null,null,null,null,null,null,null,null,{"$error":"#DIV/0!"},{"$error":"#DIV/0!"},{"$error":"#DIV/0!"},0,0,0,0,0,0,0,0,null,""]
[null,null,null,null,null,null,null,null,null,null,null,null,null,null,null,null,null,null,null,null,null,null,null,null,null,null,null,null,null,null,null,null,null,null,102,{"$error":"#N/A"},null,null,null,null,null,null,null,null,null,null,null,null,null,null,null,null,null,null,null,null,null,{"$error":"#DIV/0!"},{"$error":"#DIV/0!"},{"$error":"#DIV/0!"},0,0,0,0,0,0,0,0,null,""]
[null,null,null,null,null,null,null,null,null,null,null,null,null,null,null,null,null,null,null,null,null,null,null,null,null,null,null,null,null,null,null,null,null,null,103,{"$error":"#N/A"},null,null,null,null,null,null,null,null,null,null,null,null,null,null,null,null,null,null,null,null,null,{"$error":"#DIV/0!"},{"$error":"#DIV/0!"},{"$error":"#DIV/0!"},0,0,0,0,0,0,0,0,null,""]
[null,null,null,null,null,null,null,null,null,null,null,null,null,null,null,null,null,null,null,null,null,null,null,null,null,null,null,null,null,null,null,null,null,null,104,{"$error":"#N/A"},null,null,null,null,null,null,null,null,null,null,null,null,null,null,null,null,null,null,null,null,null,{"$error":"#DIV/0!"},{"$error":"#DIV/0!"},{"$error":"#DIV/0!"},0,0,0,0,0,0,0,0,null,""]
[null,null,null,null,null,null,null,null,null,null,null,null,null,null,null,null,null,null,null,null,null,null,null,null,null,null,null,null,null,null,null,null,null,null,105,{"$error":"#N/A"},null,null,null,null,null,null,null,null,null,null,null,null,null,null,null,null,null,null,null,null,null,{"$error":"#DIV/0!"},{"$error":"#DIV/0!"},{"$error":"#DIV/0!"},0,0,0,0,0,0,0,0,null,""]
[null,null,null,null,null,null,null,null,null,null,null,null,null,null,null,null,null,null,null,null,null,null,null,null,null,null,null,null,null,null,null,null,null,null,106,{"$error":"#N/A"},null,null,null,null,null,null,null,null,null,null,null,null,null,null,null,null,null,null,null,null,null,{"$error":"#DIV/0!"},{"$error":"#DIV/0!"},{"$error":"#DIV/0!"},0,0,0,0,0,0,0,0,null,""]
[null,null,null,null,null,null,null,null,null,null,null,null,null,null,null,null,null,null,null,null,null,null,null,null,null,null,null,null,null,null,null,null,null,null,107,{"$error":"#N/A"},null,null,null,null,null,null,null,null,null,null,null,null,null,null,null,null,null,null,null,null,null,{"$error":"#DIV/0!"},{"$error":"#DIV/0!"},{"$error":"#DIV/0!"},0,0,0,0,0,0,0,0,null,""]
[null,null,null,null,null,null,null,null,null,null,null,null,null,null,null,null,null,null,null,null,null,null,null,null,null,null,null,null,null,null,null,null,null,null,108,{"$error":"#N/A"},null,null,null,null,null,null,null,null,null,null,null,null,null,null,null,null,null,null,null,null,null,{"$error":"#DIV/0!"},{"$error":"#DIV/0!"},{"$error":"#DIV/0!"},0,0,0,0,0,0,0,0,null,""]
[null,null,null,null,null,null,null,null,null,null,null,null,null,null,null,null,null,null,null,null,null,null,null,null,null,null,null,null,null,null,null,null,null,null,109,{"$error":"#N/A"},null,null,null,null,null,null,null,null,null,null,null,null,null,null,null,null,null,null,null,null,null,{"$error":"#DIV/0!"},{"$error":"#DIV/0!"},{"$error":"#DIV/0!"},0,0,0,0,0,0,0,0,null,""]
[null,null,null,null,null,null,null,null,null,null,null,null,null,null,null,null,null,null,null,null,null,null,null,null,null,null,null,null,null,null,null,null,null,null,110,{"$error":"#N/A"},null,null,null,null,null,null,null,null,null,null,null,null,null,null,null,null,null,null,null,null,null,{"$error":"#DIV/0!"},{"$error":"#DIV/0!"},{"$error":"#DIV/0!"},0,0,0,0,0,0,0,0,null,""]
[null,null,null,null,null,null,null,null,null,null,null,null,null,null,null,null,null,null,null,null,null,null,null,null,null,null,null,null,null,null,null,null,null,null,111,{"$error":"#N/A"},null,null,null,null,null,null,null,null,null,null,null,null,null,null,null,null,null,null,null,null,null,{"$error":"#DIV/0!"},{"$error":"#DIV/0!"},{"$error":"#DIV/0!"},0,0,0,0,0,0,0,0,null,""]
[null,null,null,null,null,null,null,null,null,null,null,null,null,null,null,null,null,null,null,null,null,null,null,null,null,null,null,null,null,null,null,null,null,null,112,{"$error":"#N/A"},null,null,null,null,null,null,null,null,null,null,null,null,null,null,null,null,null,null,null,null,null,{"$error":"#DIV/0!"},{"$error":"#DIV/0!"},{"$error":"#DIV/0!"},0,0,0,0,0,0,0,0,null,""]
[null,null,null,null,null,null,null,null,null,null,null,null,null,null,null,null,null,null,null,null,null,null,null,null,null,null,null,null,null,null,null,null,null,null,113,{"$error":"#N/A"},null,null,null,null,null,null,null,null,null,null,null,null,null,null,null,null,null,null,null,null,null,{"$error":"#DIV/0!"},{"$error":"#DIV/0!"},{"$error":"#DIV/0!"},0,0,0,0,0,0,0,0,null,""]
[null,null,null,null,null,null,null,null,null,null,null,null,null,null,null,null,null,null,null,null,null,null,null,null,null,null,null,null,null,null,null,null,null,null,114,{"$error":"#N/A"},null,null,null,null,null,null,null,null,null,null,null,null,null,null,null,null,null,null,null,null,null,{"$error":"#DIV/0!"},{"$error":"#DIV/0!"},{"$error":"#DIV/0!"},0,0,0,0,0,0,0,0,null,""]
[null,null,null,null,null,null,null,null,null,null,null,null,null,null,null,null,null,null,null,null,null,null,null,null,null,null,null,null,null,null,null,null,null,null,115,{"$error":"#N/A"},null,null,null,null,null,null,null,null,null,null,null,null,null,null,null,null,null,null,null,null,null,{"$error":"#DIV/0!"},{"$error":"#DIV/0!"},{"$error":"#DIV/0!"},0,0,0,0,0,0,0,0,null,""]
[null,null,null,null,null,null,null,null,null,null,null,null,null,null,null,null,null,null,null,null,null,null,null,null,null,null,null,null,null,null,null,null,null,null,116,{"$error":"#N/A"},null,null,null,null,null,null,null,null,null,null,null,null,null,null,null,null,null,null,null,null,null,{"$error":"#DIV/0!"},{"$error":"#DIV/0!"},{"$error":"#DIV/0!"},0,0,0,0,0,0,0,0,null,""]
[null,null,null,null,null,null,null,null,null,null,null,null,null,null,null,null,null,null,null,null,null,null,null,null,null,null,null,null,null,null,null,null,null,null,117,{"$error":"#N/A"},null,null,null,null,null,null,null,null,null,null,null,null,null,null,null,null,null,null,null,null,null,{"$error":"#DIV/0!"},{"$error":"#DIV/0!"},{"$error":"#DIV/0!"},0,0,0,0,0,0,0,0,null,""]
[null,null,null,null,null,null,null,null,null,null,null,null,null,null,null,null,null,null,null,null,null,null,null,null,null,null,null,null,null,null,null,null,null,null,118,{"$error":"#N/A"},null,null,null,null,null,null,null,null,null,null,null,null,null,null,null,null,null,null,null,null,null,{"$error":"#DIV/0!"},{"$error":"#DIV/0!"},{"$error":"#DIV/0!"},0,0,0,0,0,0,0,0,null,""]
[null,null,null,null,null,null,null,null,null,null,null,null,null,null,null,null,null,null,null,null,null,null,null,null,null,null,null,null,null,null,null,null,null,null,119,{"$error":"#N/A"},null,null,null,null,null,null,null,null,null,null,null,null,null,null,null,null,null,null,null,null,null,{"$error":"#DIV/0!"},{"$error":"#DIV/0!"},{"$error":"#DIV/0!"},0,0,0,0,0,0,0,0,null,""]
[null,null,null,null,null,null,null,null,null,null,null,null,null,null,null,null,null,null,null,null,null,null,null,null,null,null,null,null,null,null,null,null,null,null,120,{"$error":"#N/A"},null,null,null,null,null,null,null,null,null,null,null,null,null,null,null,null,null,null,null,null,null,{"$error":"#DIV/0!"},{"$error":"#DIV/0!"},{"$error":"#DIV/0!"},0,0,0,0,0,0,0,0,null,""]
[null,null,null,null,null,null,null,null,null,null,null,null,null,null,null,null,null,null,null,null,null,null,null,null,null,null,null,null,null,null,null,null,null,null,121,{"$error":"#N/A"},null,null,null,null,null,null,null,null,null,null,null,null,null,null,null,null,null,null,null,null,null,{"$error":"#DIV/0!"},{"$error":"#DIV/0!"},{"$error":"#DIV/0!"},0,0,0,0,0,0,0,0,null,""]
[null,null,null,null,null,null,null,null,null,null,null,null,null,null,null,null,null,null,null,null,null,null,null,null,null,null,null,null,null,null,null,null,null,null,122,{"$error":"#N/A"},null,null,null,null,null,null,null,null,null,null,null,null,null,null,null,null,null,null,null,null,null,{"$error":"#DIV/0!"},{"$error":"#DIV/0!"},{"$error":"#DIV/0!"},0,0,0,0,0,0,0,0,null,""]
[null,null,null,null,null,null,null,null,null,null,null,null,null,null,null,null,null,null,null,null,null,null,null,null,null,null,null,null,null,null,null,null,null,null,123,{"$error":"#N/A"},null,null,null,null,null,null,null,null,null,null,null,null,null,null,null,null,null,null,null,null,null,{"$error":"#DIV/0!"},{"$error":"#DIV/0!"},{"$error":"#DIV/0!"},0,0,0,0,0,0,0,0,null,""]
[null,null,null,null,null,null,null,null,null,null,null,null,null,null,null,null,null,null,null,null,null,null,null,null,null,null,null,null,null,null,null,null,null,null,124,{"$error":"#N/A"},null,null,null,null,null,null,null,null,null,null,null,null,null,null,null,null,null,null,null,null,null,{"$error":"#DIV/0!"},{"$error":"#DIV/0!"},{"$error":"#DIV/0!"},0,0,0,0,0,0,0,0,null,""]
[null,null,null,null,null,null,null,null,null,null,null,null,null,null,null,null,null,null,null,null,null,null,null,null,null,null,null,null,null,null,null,null,null,null,125,{"$error":"#N/A"},null,null,null,null,null,null,null,null,null,null,null,null,null,null,null,null,null,null,null,null,null,{"$error":"#DIV/0!"},{"$error":"#DIV/0!"},{"$error":"#DIV/0!"},0,0,0,0,0,0,0,0,null,""]
[null,null,null,null,null,null,null,null,null,null,null,null,null,null,null,null,null,null,null,null,null,null,null,null,null,null,null,null,null,null,null,null,null,null,126,{"$error":"#N/A"},null,null,null,null,null,null,null,null,null,null,null,null,null,null,null,null,null,null,null,null,null,{"$error":"#DIV/0!"},{"$error":"#DIV/0!"},{"$error":"#DIV/0!"},0,0,0,0,0,0,0,0,null,""]
[null,null,null,null,null,null,null,null,null,null,null,null,null,null,null,null,null,null,null,null,null,null,null,null,null,null,null,null,null,null,null,null,null,null,127,{"$error":"#N/A"},null,null,null,null,null,null,null,null,null,null,null,null,null,null,null,null,null,null,null,null,null,{"$error":"#DIV/0!"},{"$error":"#DIV/0!"},{"$error":"#DIV/0!"},0,0,0,0,0,0,0,0,null,""]
[null,null,null,null,null,null,null,null,null,null,null,null,null,null,null,null,null,null,null,null,null,null,null,null,null,null,null,null,null,null,null,null,null,null,128,{"$error":"#N/A"},null,null,null,null,null,null,null,null,null,null,null,null,null,null,null,null,null,null,null,null,null,{"$error":"#DIV/0!"},{"$error":"#DIV/0!"},{"$error":"#DIV/0!"},0,0,0,0,0,0,0,0,null,""]
[null,null,null,null,null,null,null,null,null,null,null,null,null,null,null,null,null,null,null,null,null,null,null,null,null,null,null,null,null,null,null,null,null,null,129,{"$f":"VLOOKUP(AK152,BC$23:BD$25,2,0)","v":{"$error":"#N/A"}},null,null,null,null,null,null,null,null,null,null,null,null,null,null,null,null,null,null,null,null,null,{"$f":"IF(OR(AP152=\"○\",AP152>AP$15),AP$15,AP152)","v":{"$error":"#DIV/0!"}},{"$f":"IF(OR(AQ152=\"○\",AQ152>AQ$15),AQ$15,AQ152)","v":{"$error":"#DIV/0!"}},{"$f":"IF(OR(AR152=\"○\",AR152>AR$15),AR$15,AR152)","v":{"$error":"#DIV/0!"}},{"$f":"IF(OR(AS152=\"○\",AS152>AS$15),AS$15,AS152)","v":0},{"$f":"IF(OR(AT152=\"○\",AT152>AT$15),AT$15,AT152)","v":0},{"$f":"IF(OR(AU152=\"○\",AU152>AU$15),AU$15,AU152)","v":0},{"$f":"IF(OR(AV152=\"○\",AV152>AV$15),AV$15,AV152)","v":0},{"$f":"IF(OR(AW152=\"○\",AW152>AW$15),AW$15,AW152)","v":0},{"$f":"IF(OR(AX152=\"○\",AX152>AX$15),AX$15,AX152)","v":0},{"$f":"IF(OR(AY152=\"○\",AY152>AY$15),AY$15,AY152)","v":0},{"$f":"IF(OR(AZ152=\"○\",AZ152>AZ$15),AZ$15,AZ152)","v":0},null,{"$f":"AK152&AN152","v":""}]
[null,null,null,null,null,null,null,null,null,null,null,null,null,null,null,null,null,null,null,null,null,null,null,null,null,null,null,null,null,null,null,null,null,null,130,{"$error":"#N/A"},null,null,null,null,null,null,null,null,null,null,null,null,null,null,null,null,null,null,null,null,null,{"$error":"#DIV/0!"},{"$error":"#DIV/0!"},{"$error":"#DIV/0!"},0,0,0,0,0,0,0,0,null,""]
[null,null,null,null,null,null,null,null,null,null,null,null,null,null,null,null,null,null,null,null,null,null,null,null,null,null,null,null,null,null,null,null,null,null,131,{"$error":"#N/A"},null,null,null,null,null,null,null,null,null,null,null,null,null,null,null,null,null,null,null,null,null,{"$error":"#DIV/0!"},{"$error":"#DIV/0!"},{"$error":"#DIV/0!"},0,0,0,0,0,0,0,0,null,""]
[null,null,null,null,null,null,null,null,null,null,null,null,null,null,null,null,null,null,null,null,null,null,null,null,null,null,null,null,null,null,null,null,null,null,132,{"$error":"#N/A"},null,null,null,null,null,null,null,null,null,null,null,null,null,null,null,null,null,null,null,null,null,{"$error":"#DIV/0!"},{"$error":"#DIV/0!"},{"$error":"#DIV/0!"},0,0,0,0,0,0,0,0,null,""]
[null,null,null,null,null,null,null,null,null,null,null,null,null,null,null,null,null,null,null,null,null,null,null,null,null,null,null,null,null,null,null,null,null,null,133,{"$error":"#N/A"},null,null,null,null,null,null,null,null,null,null,null,null,null,null,null,null,null,null,null,null,null,{"$error":"#DIV/0!"},{"$error":"#DIV/0!"},{"$error":"#DIV/0!"},0,0,0,0,0,0,0,0,null,""]
[null,null,null,null,null,null,null,null,null,null,null,null,null,null,null,null,null,null,null,null,null,null,null,null,null,null,null,null,null,null,null,null,null,null,134,{"$error":"#N/A"},null,null,null,null,null,null,null,null,null,null,null,null,null,null,null,null,null,null,null,null,null,{"$error":"#DIV/0!"},{"$error":"#DIV/0!"},{"$error":"#DIV/0!"},0,0,0,0,0,0,0,0,null,""]
[null,null,null,null,null,null,null,null,null,null,null,null,null,null,null,null,null,null,null,null,null,null,null,null,null,null,null,null,null,null,null,null,null,null,135,{"$error":"#N/A"},null,null,null,null,null,null,null,null,null,null,null,null,null,null,null,null,null,null,null,null,null,{"$error":"#DIV/0!"},{"$error":"#DIV/0!"},{"$error":"#DIV/0!"},0,0,0,0,0,0,0,0,null,""]
[null,null,null,null,null,null,null,null,null,null,null,null,null,null,null,null,null,null,null,null,null,null,null,null,null,null,null,null,null,null,null,null,null,null,136,{"$error":"#N/A"},null,null,null,null,null,null,null,null,null,null,null,null,null,null,null,null,null,null,null,null,null,{"$error":"#DIV/0!"},{"$error":"#DIV/0!"},{"$error":"#DIV/0!"},0,0,0,0,0,0,0,0,null,""]
[null,null,null,null,null,null,null,null,null,null,null,null,null,null,null,null,null,null,null,null,null,null,null,null,null,null,null,null,null,null,null,null,null,null,137,{"$error":"#N/A"},null,null,null,null,null,null,null,null,null,null,null,null,null,null,null,null,null,null,null,null,null,{"$error":"#DIV/0!"},{"$error":"#DIV/0!"},{"$error":"#DIV/0!"},0,0,0,0,0,0,0,0,null,""]
[null,null,null,null,null,null,null,null,null,null,null,null,null,null,null,null,null,null,null,null,null,null,null,null,null,null,null,null,null,null,null,null,null,null,138,{"$error":"#N/A"},null,null,null,null,null,null,null,null,null,null,null,null,null,null,null,null,null,null,null,null,null,{"$error":"#DIV/0!"},{"$error":"#DIV/0!"},{"$error":"#DIV/0!"},0,0,0,0,0,0,0,0,null,""]
[null,null,null,null,null,null,null,null,null,null,null,null,null,null,null,null,null,null,null,null,null,null,null,null,null,null,null,null,null,null,null,null,null,null,139,{"$error":"#N/A"},null,null,null,null,null,null,null,null,null,null,null,null,null,null,null,null,null,null,null,null,null,{"$error":"#DIV/0!"},{"$error":"#DIV/0!"},{"$error":"#DIV/0!"},0,0,0,0,0,0,0,0,null,""]
[null,null,null,null,null,null,null,null,null,null,null,null,null,null,null,null,null,null,null,null,null,null,null,null,null,null,null,null,null,null,null,null,null,null,140,{"$error":"#N/A"},null,null,null,null,null,null,null,null,null,null,null,null,null,null,null,null,null,null,null,null,null,{"$error":"#DIV/0!"},{"$error":"#DIV/0!"},{"$error":"#DIV/0!"},0,0,0,0,0,0,0,0,null,""]
[null,null,null,null,null,null,null,null,null,null,null,null,null,null,null,null,null,null,null,null,null,null,null,null,null,null,null,null,null,null,null,null,null,null,141,{"$error":"#N/A"},null,null,null,null,null,null,null,null,null,null,null,null,null,null,null,null,null,null,null,null,null,{"$error":"#DIV/0!"},{"$error":"#DIV/0!"},{"$error":"#DIV/0!"},0,0,0,0,0,0,0,0,null,""]
[null,null,null,null,null,null,null,null,null,null,null,null,null,null,null,null,null,null,null,null,null,null,null,null,null,null,null,null,null,null,null,null,null,null,142,{"$error":"#N/A"},null,null,null,null,null,null,null,null,null,null,null,null,null,null,null,null,null,null,null,null,null,{"$error":"#DIV/0!"},{"$error":"#DIV/0!"},{"$error":"#DIV/0!"},0,0,0,0,0,0,0,0,null,""]
[null,null,null,null,null,null,null,null,null,null,null,null,null,null,null,null,null,null,null,null,null,null,null,null,null,null,null,null,null,null,null,null,null,null,143,{"$error":"#N/A"},null,null,null,null,null,null,null,null,null,null,null,null,null,null,null,null,null,null,null,null,null,{"$error":"#DIV/0!"},{"$error":"#DIV/0!"},{"$error":"#DIV/0!"},0,0,0,0,0,0,0,0,null,""]
[null,null,null,null,null,null,null,null,null,null,null,null,null,null,null,null,null,null,null,null,null,null,null,null,null,null,null,null,null,null,null,null,null,null,144,{"$error":"#N/A"},null,null,null,null,null,null,null,null,null,null,null,null,null,null,null,null,null,null,null,null,null,{"$error":"#DIV/0!"},{"$error":"#DIV/0!"},{"$error":"#DIV/0!"},0,0,0,0,0,0,0,0,null,""]
[null,null,null,null,null,null,null,null,null,null,null,null,null,null,null,null,null,null,null,null,null,null,null,null,null,null,null,null,null,null,null,null,null,null,145,{"$error":"#N/A"},null,null,null,null,null,null,null,null,null,null,null,null,null,null,null,null,null,null,null,null,null,{"$error":"#DIV/0!"},{"$error":"#DIV/0!"},{"$error":"#DIV/0!"},0,0,0,0,0,0,0,0,null,""]
[null,null,null,null,null,null,null,null,null,null,null,null,null,null,null,null,null,null,null,null,null,null,null,null,null,null,null,null,null,null,null,null,null,null,146,{"$error":"#N/A"},null,null,null,null,null,null,null,null,null,null,null,null,null,null,null,null,null,null,null,null,null,{"$error":"#DIV/0!"},{"$error":"#DIV/0!"},{"$error":"#DIV/0!"},0,0,0,0,0,0,0,0,null,""]
[null,null,null,null,null,null,null,null,null,null,null,null,null,null,null,null,null,null,null,null,null,null,null,null,null,null,null,null,null,null,null,null,null,null,147,{"$error":"#N/A"},null,null,null,null,null,null,null,null,null,null,null,null,null,null,null,null,null,null,null,null,null,{"$error":"#DIV/0!"},{"$error":"#DIV/0!"},{"$error":"#DIV/0!"},0,0,0,0,0,0,0,0,null,""]
[null,null,null,null,null,null,null,null,null,null,null,null,null,null,null,null,null,null,null,null,null,null,null,null,null,null,null,null,null,null,null,null,null,null,148,{"$error":"#N/A"},null,null,null,null,null,null,null,null,null,null,null,null,null,null,null,null,null,null,null,null,null,{"$error":"#DIV/0!"},{"$error":"#DIV/0!"},{"$error":"#DIV/0!"},0,0,0,0,0,0,0,0,null,""]
[null,null,null,null,null,null,null,null,null,null,null,null,null,null,null,null,null,null,null,null,null,null,null,null,null,null,null,null,null,null,null,null,null,null,149,{"$error":"#N/A"},null,null,null,null,null,null,null,null,null,null,null,null,null,null,null,null,null,null,null,null,null,{"$error":"#DIV/0!"},{"$error":"#DIV/0!"},{"$error":"#DIV/0!"},0,0,0,0,0,0,0,0,null,""]
[null,null,null,null,null,null,null,null,null,null,null,null,null,null,null,null,null,null,null,null,null,null,null,null,null,null,null,null,null,null,null,null,null,null,150,{"$error":"#N/A"},null,null,null,null,null,null,null,null,null,null,null,null,null,null,null,null,null,null,null,null,null,{"$error":"#DIV/0!"},{"$error":"#DIV/0!"},{"$error":"#DIV/0!"},0,0,0,0,0,0,0,0,null,""]